Cogmind - Beta 13 @@@ ROGUE MODE // 2024.04.25 @ 17:46:45 // AFD2019/Pay2Buy Player: Michael Result: Destroyed by H-55 Commando with Assault Rifle Performance ------------- Evolutions (3) 1500 Regions Visited (5) 1000 Robots Destroyed (5) 25 Value Destroyed (119) 119 Prototype IDs (0) 0 Alien Tech Used (0) 0 Bonus (0) 0 TOTAL SCORE: 2644 Bonus ------- None Cogmind --------- Core Integrity 0/700 Matter 296/300 Energy 100/100 System Corruption 8% Temperature Cool (0) Movement Core (50) Location -7/Factory Parts ------- > --- POWER (2) -------- (None) > --- PROPULSION (3) --- (None) > --- UTILITY (5) ------ (None) > --- WEAPON (3) ------- (None) > --- INVENTORY (10) --- (None) Peak State ------------ > --- POWER ------------ Light Ion Engine > --- PROPULSION ------- Flight Unit Flight Unit > --- UTILITY ---------- Weight Redist. System Signal Interpreter > --- WEAPON ----------- Heavy Assault Rifle Heavy Assault Rifle > --- INVENTORY -------- (None) [Rating: 10] Favorites ----------- Power Light Ion Engine Engine Light Ion Engine Propulsion Flight Unit Flight Unit Flight Unit Utility Weight Redist. System Device Weight Redist. System Storage Matter Compressor Processor Signal Interpreter Weapon Heavy Assault Rifle Ballistic Gun Heavy Assault Rifle Build | -11 -10 -9 -9 -8 -7 ------- Run | Yrd Mat Mat Sto Mat Fac Slots Evolved 6 | . . 2 . 2 2 Power 1 | . . . . . 1 Propulsion 1 | . . 1 . . . Utility 3 | . . 1 . 2 . Weapon 1 | . . . . . 1 Parts Attached . | . . . . . . Power . | . . . . . . Engine . | . . . . . . Core . | . . . . . . Reactor . | . . . . . . Propulsion . | . . . . . . Treads . | . . . . . . Leg . | . . . . . . Wheel . | . . . . . . Hover . | . . . . . . Flight . | . . . . . . Utility . | . . . . . . Device . | . . . . . . Storage . | . . . . . . Processor . | . . . . . . Hackware . | . . . . . . Protection . | . . . . . . Artifact . | . . . . . . Weapon . | . . . . . . Energy Gun . | . . . . . . Energy Cannon . | . . . . . . Ballistic Gun . | . . . . . . Ballistic Cannon . | . . . . . . Launcher . | . . . . . . Special Weapon . | . . . . . . Impact Weapon . | . . . . . . Slashing Weapon . | . . . . . . Piercing Weapon . | . . . . . . Special Melee Weapon . | . . . . . . Unidentified Prototypes . | . . . . . . Parts Lost 7 | . . . 2 3 2 Power 1 | . . . 1 . . Propulsion 2 | . . . 1 1 . Utility 2 | . . . . . 2 Weapon 2 | . . . . 2 . Highest Loss Streak 2 | . . . 2 2 1 To Critical Strikes . | . . . . . . Average Slot Usage (%) 49 | . 100 77 67 36 10 Engine 5 | . 14 11 6 . . Flight 11 | . 28 22 17 4 . Device 9 | . 14 11 11 9 6 Processor 8 | . 14 11 11 9 3 Ballistic Gun 13 | . 28 22 22 14 . Naked Turns 44 | . . . . . 44 Heaviest Build 9 | 9 9 9 9 6 . Greatest Support 14 | 14 14 14 14 10 9 Greatest Overweight (x) . | . . . . . . Average Overweight (x) . | . . . . . . Largest Inventory Capacity 10 | 10 10 10 10 10 10 Average Capacity 10 | 10 10 10 10 10 10 Most Carried . | . . . . . . Average Carried . | . . . . . . Final Capacity 10 | 10 10 10 10 10 10 Final Carried . | . . . . . . Class Distribution -------------------- 100% | Mutant Dominant Class ---------------- Mutant | -10/Materials Mutant | -9/Materials Mutant | -9/Storage Mutant | -8/Materials Mutant | -7/Factory Resources | -11 -10 -9 -9 -8 -7 ----------- Run | Yrd Mat Mat Sto Mat Fac Matter Collected 258 | . 167 . 91 . . Remotely . | . . . . . . Salvage Created 258 | . 225 . 33 . . Parts . | . . . . . . Haulers Intercepted . | . . . . . . Recyclers Shooed . | . . . . . . Parts Field Recycled . | . . . . . . Retrieved Matter . | . . . . . . Parts Self-Destructed . | . . . . . . Prevented . | . . . . . . Kills | -11 -10 -9 -9 -8 -7 ------- Run | Yrd Mat Mat Sto Mat Fac Combat Hostiles Destroyed 3 | . 2 . 1 . . Guns 3 | . 2 . 1 . . Classes Destroyed 3 | . 3 . . . . Worker 1 | . 1 . . . . Watcher 1 | . 1 . . . . Grunt 3 | . 2 . 1 . . Best Kill Streak 3 | . 3 . 1 . . Combat Bots Only 2 | . 2 . 1 . . Max Kills in Single Turn 1 | . 1 . 1 . . Gunslinging . | . . . . . . Exploded . | . . . . . . Melee . | . . . . . . Uniques/NPCs Destroyed . | . . . . . . Combat | -11 -10 -9 -9 -8 -7 -------- Run | Yrd Mat Mat Sto Mat Fac Hostile Shots Fired 124 | . 5 . 42 11 66 Missed 45 | . 3 . 23 2 17 Damage Taken 1290 | . 21 . 290 215 764 Core 889 | . . . 89 92 708 Absorbed by Shields . | . . . . . . Core Remaining (%) 90 | 100 100 . 77 83 . Volleys Fired 22 | . 14 . 6 2 . Largest 2 | . 2 . 2 2 . Hottest 46 | . 46 . 46 46 . Shots Fired 44 | . 28 . 12 4 . Gun 44 | . 28 . 12 4 . Cannon . | . . . . . . Launcher . | . . . . . . Special . | . . . . . . Kinetic 44 | . 28 . 12 4 . Thermal . | . . . . . . Explosive . | . . . . . . Electromagnetic . | . . . . . . Robot Hit Streak 8 | . 8 . 7 . . Robot Miss Streak 4 | . 1 . 1 4 . Penetration Max . | . . . . . . Secondary Targets . | . . . . . . Shots Hit Robots 27 | . 17 . 10 . . Core Hits 11 | . 7 . 2 . 2 Critical Kills . | . . . . . . Critical Parts Destroyed 2 | . 1 . 1 . . Critical Strikes 2 | . 1 . 1 . . Destroy 2 | . 1 . 1 . . Melee Attacks . | . . . . . . Impact . | . . . . . . Slashing . | . . . . . . Piercing . | . . . . . . Sneak Attacks . | . . . . . . Combat Hostiles . | . . . . . . Follow-up Attacks . | . . . . . . Damage Inflicted 424 | . 237 . 153 3 31 Guns 390 | . 237 . 153 . . Cannons . | . . . . . . Explosions . | . . . . . . Melee . | . . . . . . Ramming 34 | . . . . 3 31 Kinetic 390 | . 237 . 153 . . Thermal . | . . . . . . Explosive . | . . . . . . Electromagnetic . | . . . . . . Impact . | . . . . . . Slashing . | . . . . . . Piercing . | . . . . . . Highest Corruption 8 | . . . . . 8 Average Corruption 4 | . . . . . 4 Corruption Purged . | . . . . . . Corruption Blocked . | . . . . . . Effects 4 | . . . . . 4 Message Errors 1 | . . . . . 1 Data Loss (minor) 2 | . . . . . 2 Alerts 1 | . . . . . 1 Overload Shots . | . . . . . . Overflow Damage . | . . . . . . Projectiles . | . . . . . . Explosions . | . . . . . . Melee . | . . . . . . Knockbacks 1 | . . . . . 1 Impact 1 | . . . . . 1 Kinetic . | . . . . . . Secondary . | . . . . . . Self-Inflicted Damage 15 | . . . . 1 14 Shots . | . . . . . . Rammed 13 | . . . . 1 12 Targets Rammed 13 | . . . . 1 12 Kicked . | . . . . . . Crushed . | . . . . . . Highest Temperature 3 | . 3 . 3 . . Average Temperature 2 | . 2 . 3 . . Received Heat Transfer 108 | . 12 . 69 27 . Siege Activations . | . . . . . . Robots Corrupted . | . . . . . . Combat Hostiles . | . . . . . . Parts Fried . | . . . . . . Impact Corruptions . | . . . . . . Robots Melted . | . . . . . . Combat Hostiles . | . . . . . . Parts Melted . | . . . . . . Heat Transferred . | . . . . . . Parts Sabotaged . | . . . . . . Parts Stolen . | . . . . . . Parts Stripped . | . . . . . . Power Chain Reactions . | . . . . . . Alert | -11 -10 -9 -9 -8 -7 ------- Run | Yrd Mat Mat Sto Mat Fac Peak Influence 128 | . 86 35 69 128 53 Initial 53 | . . 35 14 28 53 Average 51 | . 53 35 34 83 47 Maximum Alert Level . | . . . . . . Low Security (%) 100 | 100 100 100 100 100 100 Level 1 . | . . . . . . Level 2 . | . . . . . . Level 3 . | . . . . . . Level 4 . | . . . . . . Level 5 . | . . . . . . High Security . | . . . . . . Max Security . | . . . . . . Squads Dispatched 5 | . 1 . 1 3 . Investigation 1 | . 1 . . . . Extermination . | . . . . . . Reinforcement 3 | . . . . 3 . Assault . | . . . . . . Garrison 1 | . . . 1 . . Intercept . | . . . . . . Searches Triggered . | . . . . . . Construction Impeded . | . . . . . . Haulers Reinforced . | . . . . . . Active Scanning Responses . | . . . . . . Cargo Convoy Interrupts . | . . . . . . Stealth | -11 -10 -9 -9 -8 -7 --------- Run | Yrd Mat Mat Sto Mat Fac Distress Signals 1 | . 1 . . . . Communications Jammed . | . . . . . . Distress Signals . | . . . . . . Times Spotted 25 | . 4 . 11 8 2 Peak Tracking Total 8 | . 2 . 8 5 2 Tactical Retreats 3 | . . . 1 2 . Traps | -11 -10 -9 -9 -8 -7 ------- Run | Yrd Mat Mat Sto Mat Fac Traps Triggered . | . . . . . . Indirectly . | . . . . . . Trap Hack Attempts . | . . . . . . Triggered . | . . . . . . Disarmed . | . . . . . . Reprogrammed . | . . . . . . Reused . | . . . . . . Traps Extracted . | . . . . . . Installed . | . . . . . . Triggered . | . . . . . . Machines | -11 -10 -9 -9 -8 -7 ---------- Run | Yrd Mat Mat Sto Mat Fac Machines Disabled . | . . . . . . Max in Single Turn . | . . . . . . Machines Repaired . | . . . . . . Machines Dismantled . | . . . . . . Machines Sabotaged . | . . . . . . Overloaded Fab Kills . | . . . . . . Hacking | -11 -10 -9 -9 -8 -7 --------- Run | Yrd Mat Mat Sto Mat Fac Machines Accessed 3 | . 2 . 1 . . Terminals 3 | . 2 . 1 . . Fabricators . | . . . . . . Repair Stations . | . . . . . . Recycling Units . | . . . . . . Scanalyzers . | . . . . . . Garrison Access . | . . . . . . Total Hacks 11 | . 8 . 3 . . Successful 1 | . 1 . . . . Failed 10 | . 7 . 3 . . Catastrophic 3 | . 2 . 1 . . Database Lockouts . | . . . . . . Manual . | . . . . . . Terminals 11 | . 8 . 3 . . Fabricators . | . . . . . . Repair Stations . | . . . . . . Recycling Units . | . . . . . . Scanalyzers . | . . . . . . Garrison Access . | . . . . . . Terminal Hacks 1 | . 1 . . . . Registered Prototypes 1 | . 1 . . . . Fabricator Hacks . | . . . . . . Repair Station Hacks . | . . . . . . Recycling Unit Hacks . | . . . . . . Scanalyzer . | . . . . . . Garrison Access Hacks . | . . . . . . Unauthorized Hacks . | . . . . . . Terminals . | . . . . . . Fabricators . | . . . . . . Repair Stations . | . . . . . . Recycling Units . | . . . . . . Scanalyzers . | . . . . . . Garrison Access . | . . . . . . Data Cores Recovered . | . . . . . . Used . | . . . . . . Hacking Detections 3 | . 2 . 1 . . Full Trace Events 3 | . 2 . 1 . . Feedback Events . | . . . . . . Feedback Blocked . | . . . . . . Robot Schematics Acquired . | . . . . . . Robots Built . | . . . . . . Authchips . | . . . . . . Time . | . . . . . . Total Robot Build Rating . | . . . . . . Part Schematics Acquired . | . . . . . . Parts Built . | . . . . . . Authchips . | . . . . . . Time . | . . . . . . Total Part Build Rating . | . . . . . . Parts Repaired . | . . . . . . Time . | . . . . . . Parts Recycled . | . . . . . . Recycled Matter . | . . . . . . Retrieved Matter . | . . . . . . Retrieved Components . | . . . . . . Parts Scanalyzed . | . . . . . . Part Schematics Acquired . | . . . . . . Parts Damaged . | . . . . . . Bothacking | -11 -10 -9 -9 -8 -7 ------------ Run | Yrd Mat Mat Sto Mat Fac Used RIF Installer . | . . . . . . Robots Hacked . | . . . . . . Non-combat . | . . . . . . Combat . | . . . . . . Robot Hacks Applied . | . . . . . . Relay Couplers Released . | . . . . . . Fabnet Peak Effective % . | . . . . . . Robots Rewired . | . . . . . . Allies Hacked . | . . . . . . Hacks Repelled . | . . . . . . Allies | -11 -10 -9 -9 -8 -7 -------- Run | Yrd Mat Mat Sto Mat Fac Total Allies . | . . . . . . Largest Group . | . . . . . . Highest-Rated Group . | . . . . . . Highest-Rated Ally . | . . . . . . Total Orders . | . . . . . . Ally Attacks . | . . . . . . Total Damage . | . . . . . . Kills . | . . . . . . Allies Corrupted . | . . . . . . Allies Melted . | . . . . . . Intel | -11 -10 -9 -9 -8 -7 ------- Run | Yrd Mat Mat Sto Mat Fac Robot Analysis Total . | . . . . . . Derelict Logs Recovered . | . . . . . . Drone Launches . | . . . . . . Drone Recoveries . | . . . . . . Exploration | -11 -10 -9 -9 -8 -7 ------------- Run | Yrd Mat Mat Sto Mat Fac Turns Passed 806 | 7 201 30 139 117 312 Spaces Moved 1380 | 18 397 81 256 244 384 Core 514 | . . . . 130 384 Treads . | . . . . . . Legs . | . . . . . . Wheels . | . . . . . . Hover . | . . . . . . Flight 866 | 18 397 81 256 114 . Fastest Speed 37 | 37 37 37 37 40 50 Average Speed 42 | 37 37 37 38 45 50 Slowest Speed 50 | 37 37 37 40 50 50 Overloaded Moves . | . . . . . . Propulsion Burnouts . | . . . . . . Robots Hopped 7 | . . . 7 . . Cave-ins Triggered . | . . . . . . Exploration Rate (%) 32 | 3 85 10 48 36 14 Regions Visited 5 Branch Regions 1 Pre-discovered Areas 1 | . . . 1 . . Known Exits Taken 4 | . 1 1 1 1 . Unknown Exits Taken 1 | 1 . . . . . Scrap Searched . | . . . . . . Spaces Dug . | . . . . . . Terrain Destroyed . | . . . . . . Melee . | . . . . . . Projectile . | . . . . . . AOE . | . . . . . . Terrain Rammed . | . . . . . . Walls Destroyed . | . . . . . . Machines Disabled . | . . . . . . Actions | -11 -10 -9 -9 -8 -7 --------- Run | Yrd Mat Mat Sto Mat Fac Total 1546 | 17 422 80 277 246 504 Wait 143 | . 12 . 23 . 108 Move 1363 | 17 396 80 242 244 384 Hop 6 | . . . 6 . . Pick Up . | . . . . . . Fast Attach . | . . . . . . Attach . | . . . . . . Detach . | . . . . . . Swap . | . . . . . . Drop . | . . . . . . Fire 22 | . 14 . 6 2 . Melee . | . . . . . . Ram 12 | . . . . . 12 Kick . | . . . . . . Crush . | . . . . . . Escape Stasis . | . . . . . . Rewire . | . . . . . . Trap . | . . . . . . Miscellaneous . | . . . . . . Route ------- -11/Scrapyard -10/Materials (discovered 4 exits: *Mat x2 / [*Min x2]) -9/Materials -9/Storage -8/Materials -7/Factory History --------- Turn | Location | Event 3 | -11/Scrapyard | Discovered new exit (range 14) 8 | -11/Scrapyard | Entered Materials 53 | -10/Materials | Discovered new exit (range 9) 160 | -10/Materials | Discovered new exit (range 9) 174 | -10/Materials | Discovered new exit (range 3) 186 | -10/Materials | Discovered new exit (range 7) 209 | -10/Materials | Identified exit to Materials 209 | -10/Materials | Entered another Materials area 209 | -9/Materials | Evolved 2 slots: Propulsion x1, Utility x1 227 | -9/Materials | Discovered new exit (range 5) 228 | -9/Materials | Identified exit to Storage 239 | -9/Materials | Entered Storage 268 | -9/Storage | Learned location of Armory (-4) 287 | -9/Storage | Garrison activated, responded to threat 305 | -9/Storage | Build established: Mutant 377 | -9/Storage | Discovered new exit (range 5) 378 | -9/Storage | Identified exit to Materials 378 | -9/Storage | Entered Materials 378 | -8/Materials | Evolved 2 slots: Utility x2 490 | -8/Materials | Discovered new exit (range 8) 494 | -8/Materials | Identified exit to Factory 495 | -8/Materials | Entered Factory 495 | -7/Factory | Evolved 2 slots: Power x1, Weapon x1 761 | -7/Factory | Core integrity fell below 50% 797 | -7/Factory | Core integrity fell below 20% 807 | -7/Factory | Destroyed by H-55 Commando with Assault Rifle Last Messages --------------- emitted. 00708_ Slammed into K-01 Serf. 00742_ System corrupted: Component data lost. 00762_ Slammed into P-60 Hacker. 00762_ P-60 Hacker knocked back. 00762_ Destabilizing: Core damaged (-7). 00763_ Weight Redist. System destroyed. 00781_ System corrupted: Component data lost. 00783_ Slammed into P-60 Hacker. 00795_ K-01 Serf cleans the Neutrino Reactor. 00798_ U-05 Engineer destroyed. 00799_ K-01 Serf collects debris. 00799_ Penetrated by Slug. 00800_ K-01 Serf cleans the Neutrino Reactor. 00803_ >SG%&==|EZD QQVBP8J8MQ:TQ 00803_ K-01 Serf cleans the Neutrino Reactor. 00804_ K-01 Serf collects debris. 00804_ K-01 Serf destroyed. 00807_ Penetrated by Slug. Map ----- +----------------------------------------------------+ | ?????????????????????????????????????????????????? | | ?????????????????????????????????????????????????? | | ?????????????????????????????????????????????????? | | ?????????????????????????????????????????????????? | | ?????????????????????????????????????????????????? | | ?????????????????????????????????????????????????? | | ?????????????????????????????????????????????????? | | ?????????????????????????????????????????????????? | | ?????????????????????????????????????????????????? | | ?????????????????????????????????????????????????? | | ?????????????????????????????????????????????????? | | ?????????????????????????????????????????????????? | | ?????????????????????????????????????????????????? | | ?????????????????????????????????????????????????? | | ?????????????????????????????????????????????????? | | ?????????????????????????????????????????????????? | | ?????????????????????????????????????????????????? | | ?????????????????????????????????????????????????? | | ??????????????????????????????? ????????????????? | | ?????????????????????????????? ????????????????? | | ???????????????????????#######+#?????????????????? | | ???????????????????????# #????????????????? | | ?????????? ????????????# k""" #????????????????? | | ????????? ???????????#% """ #????????????????? | | ???????? ###########%h """ #????????????????? | | ???????? + @ #????????????????? | | ??????? # """ #????????????????? | | ??????? #p """ #????????????????? | | ??????? + """ #????????????????? | | ??????? # #????????????????? | | ??????? ########## ???????????? | | ??????? " ????????????? | | ????????############ "T????????????? | | ???????????????????# ""????????????? | | ???????????????????# ???????????? | | ?????????########### ???????????? | | ????????## ############ ????????????? | | ????????+ #?????????????????????????? | | ????????## #?????????????????????????? | | ?????????# #/#########????????????????????????? | | ????????## # #????????????????????????? | | ######### # #????????????????????????? | | # #????????????????????????? | | # #????????????????????????? | | # #????????????????????????? | | #+####### # #????????????????????????? | | ????????# # #????????????????????????? | | ????????# # #????????????????????????? | | ????????# ###########????????????????????????? | | ????????# #??????????????????????????????????? | +----------------------------------------------------+ Best States ------------- Heat Dissipation 34 Energy Generation 10 Energy Capacity 125 Matter Stores 296 Matter Capacity 300 Sight Range 16 Terrain Scan Density 10 Additional Mass Support 6 Evasion (%) 62 Item Schematics ----------------- None Robot Schematics ------------------ None Fabricated ------------ Nothing Alien Tech Used ----------------- None Achievements -------------- None Challenges ------------ None Cogshop Purchases (8) ----------------------- Lgt. Ion Engine (599) Flight Unit (899) Flight Unit (899) Weight Redist. System (699) Hvy. Assault Rifle (699) Hvy. Assault Rifle (699) Signal Interpreter (Loot Box) Matter Compressor (Loot Box) Game ------ Seed LinearHackingRedistributor Manual? 0 Play Time 00:17:40 Cumulative 18.9 hours Start 2024.04.25 @ 17:31:21 End 2024.04.25 @ 17:46:45 Sessions 1 Manual Loads 0 Difficulty Rogue Special Mode AFD2019/Pay2Buy Game No. 25 Rogue 24 Adventurer 1 Explorer 0 Win Type - Total 0 Types 0/0/0/0/0/0/0/0/0 Lore% 6 Gallery% 19 Achievement% 19 Wizard Run 0 Options --------- Layout 1 ASCII 0 Keyboard 0 Movement Mouse Keybinds 0 Fullscreen 2 Font 32/Terminus Map View 50x35 Zoom Use 0% Tactical HUD 1 Map Filters NONE Filters NONE Steam 1 RUN: a269bd73-7732-41a4-a582-d3c846cd3029